[Event "Live Chess"]
[Site "Chess.com"]
[Date "2024.06.02"]
[Round "-"]
[White "Harry_Li"]
[Black "Tilbs_12"]
[Result "1-0"]
[WhiteElo "2158"]
[BlackElo "1655"]
[TimeControl "300"]
[EndTime "4:23:18 PDT"]
[Termination "Harry_Li won by resignation"]

1. c4 {[%clk 0:04:55.9]} 1... c5 {[%clk 0:04:58.2]} 2. g3 {[%clk 0:04:55.1]}
2... g6 {[%clk 0:04:57.1]} 3. Bg2 {[%clk 0:04:54.6]} 3... Nc6 {[%clk 0:04:56.6]}
4. Nf3 {[%clk 0:04:54]} 4... Bg7 {[%clk 0:04:56]} 5. O-O {[%clk 0:04:52.2]} 5...
e5 {[%clk 0:04:54.1]} 6. Nc3 {[%clk 0:04:49]} 6... Nf6 {[%clk 0:04:51.2]} 7. d3
{[%clk 0:04:47]} 7... d6 {[%clk 0:04:50.1]} 8. Ne1 {[%clk 0:04:38.3]} 8... O-O
{[%clk 0:04:46.8]} 9. Nc2 {[%clk 0:04:37.3]} 9... a5 {[%clk 0:04:44.5]} 10. Ne3
{[%clk 0:04:29.1]} 10... Be6 {[%clk 0:04:41.2]} 11. Ned5 {[%clk 0:04:26.9]}
11... Rb8 {[%clk 0:04:28.1]} 12. a3 {[%clk 0:04:09.5]} 12... Ne7 {[%clk
0:04:25.1]} 13. e4 {[%clk 0:04:05.1]} 13... Nc6 {[%clk 0:04:21.3]} 14. Rb1
{[%clk 0:04:02.1]} 14... Bxd5 {[%clk 0:04:18.5]} 15. exd5 {[%clk 0:03:53.1]}
15... Nd4 {[%clk 0:04:16.8]} 16. b4 {[%clk 0:03:50.8]} 16... b6 {[%clk
0:04:09.9]} 17. Be3 {[%clk 0:03:14.5]} 17... Ne8 {[%clk 0:03:40.3]} 18. Bxd4
{[%clk 0:03:06.1]} 18... exd4 {[%clk 0:03:40.2]} 19. Nb5 {[%clk 0:03:05.1]}
19... Nc7 {[%clk 0:03:39.1]} 20. Na7 {[%clk 0:02:58.9]} 20... Qf6 {[%clk
0:03:17]} 21. Nc6 {[%clk 0:02:57.8]} 21... Rb7 {[%clk 0:03:16]} 22. bxa5 {[%clk
0:02:54.7]} 22... b5 {[%clk 0:03:12.2]} 23. a6 {[%clk 0:02:45]} 23... Nxa6
{[%clk 0:03:03.8]} 24. cxb5 {[%clk 0:02:40.4]} 24... Nb8 {[%clk 0:02:58]} 25. a4
{[%clk 0:02:37.1]} 25... h5 {[%clk 0:02:25.8]} 26. a5 {[%clk 0:02:31.7]} 26...
h4 {[%clk 0:02:19]} 27. a6 {[%clk 0:02:24.6]} 1-0

[Event "Live Chess"]
[Site "Chess.com"]
[Date "2024.06.02"]
[Round "-"]
[White "road2gm5000"]
[Black "Grace6363"]
[Result "0-1"]
[WhiteElo "1100"]
[BlackElo "1154"]
[TimeControl "300"]
[EndTime "4:23:24 PDT"]
[Termination "Grace6363 won by resignation"]

1. e4 {[%clk 0:04:55.9]} 1... c5 {[%clk 0:04:58.8]} 2. Nf3 {[%clk 0:04:54.7]}
2... Nc6 {[%clk 0:04:58.3]} 3. Bb5 {[%clk 0:04:54.2]} 3... g6 {[%clk 0:04:56.1]}
4. Bxc6 {[%clk 0:04:47.8]} 4... dxc6 {[%clk 0:04:55.3]} 5. d3 {[%clk 0:04:47.7]}
5... Bg4 {[%clk 0:04:54.3]} 6. Nc3 {[%clk 0:04:46.6]} 6... Bg7 {[%clk
0:04:53.7]} 7. h3 {[%clk 0:04:45.3]} 7... Bxf3 {[%clk 0:04:52.5]} 8. Qxf3 {[%clk
0:04:45.2]} 8... Nf6 {[%clk 0:04:52.1]} 9. Bd2 {[%clk 0:04:44.2]} 9... O-O
{[%clk 0:04:49.4]} 10. O-O {[%clk 0:04:43.4]} 10... Qd7 {[%clk 0:04:46.5]} 11.
Na4 {[%clk 0:04:41.9]} 11... b6 {[%clk 0:04:44.1]} 12. b3 {[%clk 0:04:40.7]}
12... Rad8 {[%clk 0:04:42.2]} 13. Bg5 {[%clk 0:04:36.7]} 13... Nh5 {[%clk
0:04:28.2]} 14. Rab1 {[%clk 0:04:28]} 14... f6 {[%clk 0:04:22.8]} 15. Be3 {[%clk
0:04:24.1]} 15... f5 {[%clk 0:04:13.3]} 16. exf5 {[%clk 0:04:20.1]} 16... Rxf5
{[%clk 0:04:11.3]} 17. Qe2 {[%clk 0:04:05.5]} 17... Rdf8 {[%clk 0:04:03.1]} 18.
g4 {[%clk 0:04:04.2]} 18... Rf3 {[%clk 0:03:50.3]} 19. Kg2 {[%clk 0:03:48.7]}
19... Nf4+ {[%clk 0:03:45]} 20. Bxf4 {[%clk 0:03:45.9]} 20... R3xf4 {[%clk
0:03:42.6]} 21. Rbe1 {[%clk 0:03:36.9]} 21... Qd5+ {[%clk 0:03:40.5]} 22. Kg1
{[%clk 0:03:32]} 22... Bd4 {[%clk 0:03:03.8]} 23. c4 {[%clk 0:03:21.6]} 23...
Qf3 {[%clk 0:02:53.5]} 24. Qxf3 {[%clk 0:03:02.6]} 24... Rxf3 {[%clk 0:02:52.6]}
25. Re2 {[%clk 0:03:02.5]} 25... Rxh3 {[%clk 0:02:50]} 26. Kg2 {[%clk
0:03:00.5]} 26... Rhf3 {[%clk 0:02:40.1]} 27. Nb2 {[%clk 0:02:54.1]} 27... Bxb2
{[%clk 0:02:29.4]} 28. Rxb2 {[%clk 0:02:51.9]} 28... h5 {[%clk 0:02:24.2]} 29.
gxh5 {[%clk 0:02:49.4]} 29... gxh5 {[%clk 0:02:23.6]} 30. Rd2 {[%clk 0:02:45.1]}
30... h4 {[%clk 0:02:22.1]} 31. Re1 {[%clk 0:02:43.7]} 31... h3+ {[%clk
0:02:21]} 32. Kg1 {[%clk 0:02:40.9]} 32... R8f7 {[%clk 0:02:17.8]} 33. Re3
{[%clk 0:02:30.9]} 33... Rg7+ {[%clk 0:02:10.9]} 34. Kh2 {[%clk 0:02:28.6]}
34... Rg2+ {[%clk 0:02:06.7]} 35. Kh1 {[%clk 0:02:27.1]} 35... Rxe3 {[%clk
0:02:03.2]} 0-1

[Event "Live Chess"]
[Site "Chess.com"]
[Date "2024.06.02"]
[Round "-"]
[White "RamsayFlayer"]
[Black "Victor_Bondar"]
[Result "1-0"]
[WhiteElo "1924"]
[BlackElo "1459"]
[TimeControl "300"]
[EndTime "4:23:25 PDT"]
[Termination "RamsayFlayer won on time"]

1. e4 {[%clk 0:04:58.2]} 1... d5 {[%clk 0:04:57.9]} 2. exd5 {[%clk 0:04:56.6]}
2... Qxd5 {[%clk 0:04:56.4]} 3. Nc3 {[%clk 0:04:56.2]} 3... Qa5 {[%clk
0:04:54.3]} 4. d4 {[%clk 0:04:54.5]} 4... Nf6 {[%clk 0:04:53]} 5. Nf3 {[%clk
0:04:53.8]} 5... Bg4 {[%clk 0:04:51.6]} 6. h3 {[%clk 0:04:53.4]} 6... Bh5 {[%clk
0:04:49.3]} 7. g4 {[%clk 0:04:43.2]} 7... Bg6 {[%clk 0:04:47.3]} 8. Ne5 {[%clk
0:04:39.5]} 8... c6 {[%clk 0:04:46.3]} 9. Bc4 {[%clk 0:04:29]} 9... e6 {[%clk
0:04:22.8]} 10. Nxg6 {[%clk 0:04:14.8]} 10... hxg6 {[%clk 0:04:18.1]} 11. Qf3
{[%clk 0:04:12.4]} 11... Nbd7 {[%clk 0:03:58.3]} 12. Bd2 {[%clk 0:04:03]} 12...
Qc7 {[%clk 0:03:50.7]} 13. Ne4 {[%clk 0:03:51.7]} 13... Nxe4 {[%clk 0:03:45.7]}
14. Qxe4 {[%clk 0:03:42.4]} 14... Nf6 {[%clk 0:03:45.2]} 15. Qf3 {[%clk
0:03:40.7]} 15... O-O-O {[%clk 0:03:40.8]} 16. c3 {[%clk 0:03:32.7]} 16... c5
{[%clk 0:03:37.4]} 17. Bf4 {[%clk 0:03:11.7]} 17... Bd6 {[%clk 0:03:33.6]} 18.
Bxd6 {[%clk 0:03:06.5]} 18... Rxd6 {[%clk 0:03:29.9]} 19. dxc5 {[%clk
0:02:57.8]} 19... Qxc5 {[%clk 0:03:27.5]} 20. Bb3 {[%clk 0:02:53.4]} 20... Qe5+
{[%clk 0:03:20.6]} 21. Qe2 {[%clk 0:02:40.9]} 21... Nxg4 {[%clk 0:03:13.6]} 22.
Qxe5 {[%clk 0:02:36.6]} 22... Nxe5 {[%clk 0:03:12.2]} 23. Ke2 {[%clk 0:02:24.8]}
23... Rhd8 {[%clk 0:03:03.5]} 24. Rad1 {[%clk 0:02:19.1]} 24... Rxd1 {[%clk
0:03:01.1]} 25. Rxd1 {[%clk 0:02:19]} 25... Rh8 {[%clk 0:02:56]} 26. f4 {[%clk
0:02:02.6]} 26... Nd7 {[%clk 0:02:51.2]} 27. Rd3 {[%clk 0:01:54.5]} 27... Rh4
{[%clk 0:02:45.7]} 28. Rf3 {[%clk 0:01:45]} 28... Kc7 {[%clk 0:02:38.2]} 29. Kf2
{[%clk 0:01:29.7]} 29... Nf6 {[%clk 0:02:31.8]} 30. Kg3 {[%clk 0:01:09.4]} 30...
Rh5 {[%clk 0:02:28]} 31. Re3 {[%clk 0:01:04.5]} 31... Kd6 {[%clk 0:02:17.2]} 32.
Rd3+ {[%clk 0:00:58.8]} 32... Ke7 {[%clk 0:02:14.3]} 33. Rd4 {[%clk 0:00:55.5]}
33... g5 {[%clk 0:02:11.2]} 34. fxg5 {[%clk 0:00:52.4]} 34... Rxg5+ {[%clk
0:02:08]} 35. Kf3 {[%clk 0:00:52.1]} 35... Rf5+ {[%clk 0:01:54.8]} 36. Ke3
{[%clk 0:00:49.5]} 36... Rh5 {[%clk 0:01:34.8]} 37. h4 {[%clk 0:00:46.7]} 37...
Re5+ {[%clk 0:01:34.3]} 38. Kf3 {[%clk 0:00:44.4]} 38... Nd7 {[%clk 0:01:24.2]}
39. Rb4 {[%clk 0:00:39.8]} 39... b6 {[%clk 0:01:20.4]} 40. Ba4 {[%clk
0:00:37.2]} 40... Nc5 {[%clk 0:01:13.7]} 41. Bc6 {[%clk 0:00:33.6]} 41... Nd3
{[%clk 0:01:09.6]} 42. Rd4 {[%clk 0:00:29.8]} 42... Nxb2 {[%clk 0:01:06.1]} 43.
Rd7+ {[%clk 0:00:28.5]} 43... Kf6 {[%clk 0:01:02.5]} 44. Rxa7 {[%clk 0:00:27.3]}
44... Nc4 {[%clk 0:00:59]} 45. Rb7 {[%clk 0:00:19.5]} 45... Re3+ {[%clk
0:00:49.5]} 46. Kf2 {[%clk 0:00:18.3]} 46... Rxc3 {[%clk 0:00:46]} 47. Be8
{[%clk 0:00:17.3]} 47... Nd6 {[%clk 0:00:41.2]} 48. Rb8 {[%clk 0:00:16.4]} 48...
Nxe8 {[%clk 0:00:34.8]} 49. Rxe8 {[%clk 0:00:16.3]} 49... Rc2+ {[%clk
0:00:31.3]} 50. Ke3 {[%clk 0:00:14.7]} 50... Rxa2 {[%clk 0:00:30.7]} 51. Rb8
{[%clk 0:00:14.4]} 51... Rh2 {[%clk 0:00:22.9]} 52. Rxb6 {[%clk 0:00:12.3]}
52... Rxh4 {[%clk 0:00:21.6]} 53. Kf3 {[%clk 0:00:12.2]} 53... Rh5 {[%clk
0:00:19.8]} 54. Kg3 {[%clk 0:00:11.3]} 54... g5 {[%clk 0:00:17]} 55. Rb4 {[%clk
0:00:10.8]} 55... Kf5 {[%clk 0:00:09]} 56. Rc4 {[%clk 0:00:10.2]} 56... e5
{[%clk 0:00:07.2]} 57. Kf2 {[%clk 0:00:09.3]} 57... f6 {[%clk 0:00:06.2]} 58.
Rc8 {[%clk 0:00:07.3]} 58... Rh4 {[%clk 0:00:04.8]} 59. Rc3 {[%clk 0:00:06.5]}
59... Rf4+ {[%clk 0:00:03.4]} 60. Ke2 {[%clk 0:00:05.2]} 60... g4 {[%clk
0:00:01.2]} 61. Rg3 {[%clk 0:00:04.7]} 1-0

[Event "Live Chess"]
[Site "Chess.com"]
[Date "2024.06.02"]
[Round "-"]
[White "KeithArkell"]
[Black "mrsmarple1968"]
[Result "1-0"]
[WhiteElo "2418"]
[BlackElo "1737"]
[TimeControl "300"]
[EndTime "4:24:28 PDT"]
[Termination "KeithArkell won by resignation"]

1. d4 {[%clk 0:04:57.8]} 1... d5 {[%clk 0:04:57.7]} 2. Nf3 {[%clk 0:04:56.9]}
2... Nf6 {[%clk 0:04:55.4]} 3. c4 {[%clk 0:04:56.1]} 3... e6 {[%clk 0:04:53.4]}
4. cxd5 {[%clk 0:04:54.7]} 4... exd5 {[%clk 0:04:51.7]} 5. Nc3 {[%clk 0:04:54]}
5... c6 {[%clk 0:04:50]} 6. Qc2 {[%clk 0:04:32.1]} 6... Bd6 {[%clk 0:04:39]} 7.
Bg5 {[%clk 0:04:30.6]} 7... O-O {[%clk 0:04:31.2]} 8. e3 {[%clk 0:04:29]} 8...
Re8 {[%clk 0:04:22.2]} 9. Bd3 {[%clk 0:04:27.6]} 9... h6 {[%clk 0:04:18.5]} 10.
Bh4 {[%clk 0:04:25.8]} 10... Be7 {[%clk 0:04:11.7]} 11. O-O {[%clk 0:04:22.8]}
11... Bg4 {[%clk 0:04:07.1]} 12. Ne5 {[%clk 0:04:21.3]} 12... Be6 {[%clk
0:03:52.2]} 13. Bf5 {[%clk 0:04:17]} 13... Nbd7 {[%clk 0:03:36.8]} 14. Bxe6
{[%clk 0:04:15.1]} 14... fxe6 {[%clk 0:03:30]} 15. Qg6 {[%clk 0:04:07.7]} 15...
Rf8 {[%clk 0:03:16.3]} 16. f4 {[%clk 0:04:03.2]} 16... Bd6 {[%clk 0:02:48.9]}
17. Rf3 {[%clk 0:03:52]} 17... Qe8 {[%clk 0:02:26.1]} 18. Qd3 {[%clk 0:03:47.6]}
18... c5 {[%clk 0:02:21.3]} 19. Rg3 {[%clk 0:03:45.8]} 19... Bxe5 {[%clk
0:01:56.8]} 20. dxe5 {[%clk 0:03:33.3]} 20... Nh7 {[%clk 0:01:41.8]} 21. Nb5
{[%clk 0:03:14.6]} 21... Rb8 {[%clk 0:01:23.9]} 22. Qe2 {[%clk 0:03:10.5]} 22...
Qf7 {[%clk 0:01:13.4]} 23. Nd6 {[%clk 0:03:08.1]} 1-0

[Event "Live Chess"]
[Site "Chess.com"]
[Date "2024.06.02"]
[Round "-"]
[White "JanMur7"]
[Black "Dhaydon19"]
[Result "0-1"]
[WhiteElo "2290"]
[BlackElo "2648"]
[TimeControl "300"]
[EndTime "4:24:56 PDT"]
[Termination "Dhaydon19 won by resignation"]

1. d4 {[%clk 0:04:56.1]} 1... e6 {[%clk 0:04:59.3]} 2. c4 {[%clk 0:04:55.4]}
2... d5 {[%clk 0:04:58.8]} 3. Nc3 {[%clk 0:04:54.7]} 3... Nf6 {[%clk 0:04:58.1]}
4. Bg5 {[%clk 0:04:53.9]} 4... dxc4 {[%clk 0:04:57.3]} 5. e3 {[%clk 0:04:52.6]}
5... Be7 {[%clk 0:04:56.9]} 6. Bxc4 {[%clk 0:04:50.8]} 6... O-O {[%clk
0:04:56.5]} 7. Nf3 {[%clk 0:04:49.6]} 7... a6 {[%clk 0:04:55.9]} 8. a4 {[%clk
0:04:48.9]} 8... Nbd7 {[%clk 0:04:54.3]} 9. O-O {[%clk 0:04:46.9]} 9... b6
{[%clk 0:04:53.4]} 10. Rc1 {[%clk 0:04:38.3]} 10... Bb7 {[%clk 0:04:52.3]} 11.
Bd3 {[%clk 0:04:37.4]} 11... c5 {[%clk 0:04:50.7]} 12. Qc2 {[%clk 0:04:34.2]}
12... cxd4 {[%clk 0:04:48.7]} 13. Nxd4 {[%clk 0:04:33.2]} 13... h6 {[%clk
0:04:47.2]} 14. Bh4 {[%clk 0:04:31.8]} 14... Nc5 {[%clk 0:04:45]} 15. Be2 {[%clk
0:04:25.8]} 15... Rc8 {[%clk 0:04:37.1]} 16. Bf3 {[%clk 0:04:16.3]} 16... Bxf3
{[%clk 0:04:33]} 17. Nxf3 {[%clk 0:04:16.2]} 17... Qd3 {[%clk 0:04:25.9]} 18.
Qxd3 {[%clk 0:03:39.9]} 18... Nxd3 {[%clk 0:04:23.1]} 19. Rb1 {[%clk 0:03:36.2]}
19... Rfd8 {[%clk 0:04:20.2]} 20. Nd4 {[%clk 0:03:16]} 20... g5 {[%clk
0:04:13.3]} 21. Bg3 {[%clk 0:03:12.8]} 21... Nd5 {[%clk 0:04:05.6]} 22. Nxd5
{[%clk 0:03:07.6]} 22... Rxd5 {[%clk 0:04:05.1]} 23. Rfd1 {[%clk 0:03:03.5]}
23... Nb4 {[%clk 0:04:03.4]} 24. Rbc1 {[%clk 0:02:48.5]} 24... Rxc1 {[%clk
0:03:55.4]} 25. Rxc1 {[%clk 0:02:48.4]} 25... Bc5 {[%clk 0:03:54.6]} 26. Nb3
{[%clk 0:02:35.5]} 26... Nd3 {[%clk 0:03:52.7]} 27. Rb1 {[%clk 0:02:24.4]} 27...
Nxb2 {[%clk 0:03:51]} 28. Nxc5 {[%clk 0:02:16.4]} 28... bxc5 {[%clk 0:03:49.8]}
29. Kf1 {[%clk 0:02:10]} 29... Nc4 {[%clk 0:03:41.7]} 30. Rc1 {[%clk 0:02:04]}
30... Nd2+ {[%clk 0:03:36.9]} 31. Ke2 {[%clk 0:02:02.3]} 31... Ne4 {[%clk
0:03:36.5]} 32. f3 {[%clk 0:01:58.7]} 32... Nxg3+ {[%clk 0:03:35.2]} 33. hxg3
{[%clk 0:01:58.6]} 33... f5 {[%clk 0:03:30.6]} 34. g4 {[%clk 0:01:37.6]} 34...
Kf7 {[%clk 0:03:23.3]} 35. gxf5 {[%clk 0:01:20.7]} 35... exf5 {[%clk 0:03:22]}
36. Rc4 {[%clk 0:01:14.1]} 36... Ke6 {[%clk 0:03:20]} 37. Rc1 {[%clk 0:01:12.8]}
37... Kd6 {[%clk 0:03:19.2]} 38. Rh1 {[%clk 0:01:11.5]} 38... c4 {[%clk
0:03:02.8]} 39. Rxh6+ {[%clk 0:01:09.2]} 39... Kc5 {[%clk 0:03:01.6]} 40. Rxa6
{[%clk 0:01:07.9]} 40... Kb4 {[%clk 0:03:00.8]} 41. Rc6 {[%clk 0:01:06]} 41...
c3 {[%clk 0:02:59]} 42. g4 {[%clk 0:00:54.3]} 42... Rd2+ {[%clk 0:02:57]} 43.
Ke1 {[%clk 0:00:51.3]} 43... fxg4 {[%clk 0:02:55.8]} 44. fxg4 {[%clk 0:00:51.2]}
44... Ra2 {[%clk 0:02:52.3]} 45. e4 {[%clk 0:00:44.8]} 45... Rxa4 {[%clk
0:02:47.8]} 46. Ke2 {[%clk 0:00:41.3]} 46... Ra2+ {[%clk 0:02:33]} 47. Kd3
{[%clk 0:00:39.3]} 47... Rd2+ {[%clk 0:02:32.2]} 48. Ke3 {[%clk 0:00:38.7]}
48... Rd1 {[%clk 0:02:29.1]} 49. Ke2 {[%clk 0:00:32.8]} 49... Rd4 {[%clk
0:02:23.8]} 50. Ke3 {[%clk 0:00:30.3]} 50... Rc4 {[%clk 0:02:22.1]} 51. Rb6+
{[%clk 0:00:19.7]} 51... Ka3 {[%clk 0:02:21.2]} 52. Kd3 {[%clk 0:00:16.9]} 52...
c2 {[%clk 0:02:18.7]} 53. Ra6+ {[%clk 0:00:16.4]} 53... Kb4 {[%clk 0:02:16.6]}
54. Rb6+ {[%clk 0:00:15.5]} 54... Kc5 {[%clk 0:02:15.4]} 0-1

[Event "Live Chess"]
[Site "Chess.com"]
[Date "2024.06.02"]
[Round "-"]
[White "JohanKjeldahl"]
[Black "RichardABates"]
[Result "0-1"]
[WhiteElo "1792"]
[BlackElo "2328"]
[TimeControl "300"]
[EndTime "4:25:03 PDT"]
[Termination "RichardABates won by checkmate"]

1. c4 {[%clk 0:04:57.9]} 1... g6 {[%clk 0:04:58.6]} 2. Nc3 {[%clk 0:04:56.4]}
2... Bg7 {[%clk 0:04:57.2]} 3. d4 {[%clk 0:04:55.5]} 3... Nf6 {[%clk 0:04:55.2]}
4. e4 {[%clk 0:04:54.7]} 4... c6 {[%clk 0:04:54.2]} 5. f3 {[%clk 0:04:52.7]}
5... d6 {[%clk 0:04:52.3]} 6. Be3 {[%clk 0:04:51.4]} 6... O-O {[%clk 0:04:50.1]}
7. Qd2 {[%clk 0:04:50]} 7... a6 {[%clk 0:04:49.2]} 8. Bd3 {[%clk 0:04:48]} 8...
b5 {[%clk 0:04:47.9]} 9. cxb5 {[%clk 0:04:46.4]} 9... axb5 {[%clk 0:04:45.5]}
10. a3 {[%clk 0:04:45.4]} 10... b4 {[%clk 0:04:43.4]} 11. Nb1 {[%clk 0:04:41.3]}
11... bxa3 {[%clk 0:04:27.5]} 12. Rxa3 {[%clk 0:04:40.1]} 12... Rxa3 {[%clk
0:04:25.6]} 13. Nxa3 {[%clk 0:04:38.3]} 13... Ba6 {[%clk 0:04:23.7]} 14. Ne2
{[%clk 0:04:35.3]} 14... e5 {[%clk 0:04:02.5]} 15. Bxa6 {[%clk 0:04:28.9]} 15...
Nxa6 {[%clk 0:03:58.8]} 16. dxe5 {[%clk 0:04:27.4]} 16... dxe5 {[%clk
0:03:55.3]} 17. Qxd8 {[%clk 0:04:23.9]} 17... Rxd8 {[%clk 0:03:53.9]} 18. Kf2
{[%clk 0:04:22.9]} 18... Nb4 {[%clk 0:03:51.6]} 19. Nc4 {[%clk 0:04:16.2]} 19...
Nd3+ {[%clk 0:03:49.1]} 20. Kg3 {[%clk 0:04:13.2]} 20... Nh5+ {[%clk 0:03:42.4]}
21. Kh3 {[%clk 0:04:08.5]} 21... Nhf4+ {[%clk 0:03:29]} 22. Bxf4 {[%clk
0:04:03.4]} 22... exf4 {[%clk 0:03:27.4]} 23. Rb1 {[%clk 0:03:56.1]} 23... Nf2+
{[%clk 0:03:25]} 24. Kh4 {[%clk 0:03:39.8]} 24... Bf6# {[%clk 0:03:23.3]} 0-1

[Event "Live Chess"]
[Site "Chess.com"]
[Date "2024.06.02"]
[Round "-"]
[White "Duke_of_Bebington"]
[Black "slava_ukr"]
[Result "0-1"]
[WhiteElo "1636"]
[BlackElo "2411"]
[TimeControl "300"]
[EndTime "4:25:13 PDT"]
[Termination "slava_ukr won by resignation"]

1. e4 {[%clk 0:04:57.8]} 1... c5 {[%clk 0:04:59.3]} 2. c3 {[%clk 0:04:53.6]}
2... e5 {[%clk 0:04:57.7]} 3. Nf3 {[%clk 0:04:51.2]} 3... Nc6 {[%clk 0:04:56.6]}
4. d4 {[%clk 0:04:49.8]} 4... cxd4 {[%clk 0:04:55.9]} 5. cxd4 {[%clk 0:04:49.7]}
5... exd4 {[%clk 0:04:55.1]} 6. Nxd4 {[%clk 0:04:48.3]} 6... Nf6 {[%clk
0:04:54.3]} 7. Nc3 {[%clk 0:04:46.8]} 7... Bb4 {[%clk 0:04:53.5]} 8. Nxc6 {[%clk
0:04:34.5]} 8... dxc6 {[%clk 0:04:52.6]} 9. Qxd8+ {[%clk 0:04:30.9]} 9... Kxd8
{[%clk 0:04:51.9]} 10. Bg5 {[%clk 0:04:26.6]} 10... h6 {[%clk 0:04:51]} 11.
Bxf6+ {[%clk 0:04:24.2]} 11... gxf6 {[%clk 0:04:50.3]} 12. O-O-O+ {[%clk
0:04:22.3]} 12... Ke7 {[%clk 0:04:49.6]} 13. Ne2 {[%clk 0:04:08.9]} 13... Be6
{[%clk 0:04:45.7]} 14. Kb1 {[%clk 0:04:07]} 14... Rad8 {[%clk 0:04:39.1]} 15.
Rxd8 {[%clk 0:03:53.4]} 15... Rxd8 {[%clk 0:04:37.5]} 16. Ng3 {[%clk 0:03:27]}
16... Rd1+ {[%clk 0:04:22.1]} 17. Kc2 {[%clk 0:03:23.4]} 17... Rd2+ {[%clk
0:04:19.5]} 18. Kb1 {[%clk 0:03:20.1]} 18... Rxf2 {[%clk 0:04:14.8]} 19. Bd3
{[%clk 0:03:09.9]} 19... Rxg2 {[%clk 0:04:08.8]} 20. Nf5+ {[%clk 0:03:05.8]}
20... Bxf5 {[%clk 0:03:56.4]} 21. exf5 {[%clk 0:03:04.4]} 21... Bd6 {[%clk
0:03:55.3]} 22. h4 {[%clk 0:02:57.5]} 22... Be5 {[%clk 0:03:54]} 0-1

[Event "Live Chess"]
[Site "Chess.com"]
[Date "2024.06.02"]
[Round "-"]
[White "Ferrarifan27"]
[Black "NottheBishopSacrifice"]
[Result "1-0"]
[WhiteElo "2176"]
[BlackElo "2316"]
[TimeControl "300"]
[EndTime "4:25:15 PDT"]
[Termination "Ferrarifan27 won by checkmate"]

1. e4 {[%clk 0:04:57.6]} 1... c6 {[%clk 0:04:59.1]} 2. d4 {[%clk 0:04:55.8]}
2... d5 {[%clk 0:04:59]} 3. e5 {[%clk 0:04:54.8]} 3... c5 {[%clk 0:04:58.1]} 4.
dxc5 {[%clk 0:04:52.4]} 4... e6 {[%clk 0:04:57.4]} 5. Qg4 {[%clk 0:04:50.7]}
5... h5 {[%clk 0:04:55]} 6. Qg3 {[%clk 0:04:48.6]} 6... Ne7 {[%clk 0:04:46.8]}
7. b4 {[%clk 0:04:41.2]} 7... Nf5 {[%clk 0:04:44.4]} 8. Qb3 {[%clk 0:04:37.3]}
8... a5 {[%clk 0:04:36.7]} 9. c3 {[%clk 0:04:31.2]} 9... Bd7 {[%clk 0:04:31.6]}
10. Nf3 {[%clk 0:04:29.1]} 10... Nc6 {[%clk 0:04:14.7]} 11. Bd3 {[%clk
0:04:22.6]} 11... axb4 {[%clk 0:04:13.2]} 12. cxb4 {[%clk 0:04:21.2]} 12... Ncd4
{[%clk 0:04:12.7]} 13. Nxd4 {[%clk 0:04:18.6]} 13... Nxd4 {[%clk 0:04:12.6]} 14.
Qb2 {[%clk 0:04:11.6]} 14... Nb5 {[%clk 0:04:07.1]} 15. O-O {[%clk 0:04:08.4]}
15... Be7 {[%clk 0:04:05.1]} 16. Nc3 {[%clk 0:04:04.7]} 16... Nxc3 {[%clk
0:04:00.5]} 17. Qxc3 {[%clk 0:04:04.6]} 17... g6 {[%clk 0:03:58.6]} 18. f4
{[%clk 0:03:42.5]} 18... O-O {[%clk 0:03:57.2]} 19. a3 {[%clk 0:03:35.3]} 19...
Rc8 {[%clk 0:03:54.4]} 20. Qc2 {[%clk 0:03:32]} 20... Kg7 {[%clk 0:03:51.2]} 21.
Qd2 {[%clk 0:03:30]} 21... Rh8 {[%clk 0:03:45]} 22. Bb2 {[%clk 0:03:18.9]} 22...
b6 {[%clk 0:03:43.9]} 23. f5 {[%clk 0:03:00.9]} 23... gxf5 {[%clk 0:03:32]} 24.
Bxf5 {[%clk 0:02:59.7]} 24... bxc5 {[%clk 0:03:25.9]} 25. bxc5 {[%clk
0:02:58.8]} 25... Bxc5+ {[%clk 0:03:23.1]} 26. Kh1 {[%clk 0:02:57.4]} 26... Bb5
{[%clk 0:03:14.7]} 27. Bd3 {[%clk 0:02:46.2]} 27... Bxd3 {[%clk 0:03:12.6]} 28.
Qxd3 {[%clk 0:02:46.1]} 28... Qb6 {[%clk 0:03:08.4]} 29. Rab1 {[%clk 0:02:38.4]}
29... h4 {[%clk 0:03:02.9]} 30. Qf3 {[%clk 0:02:35.7]} 30... Qa7 {[%clk
0:02:55.1]} 31. Qf6+ {[%clk 0:02:34]} 31... Kg8 {[%clk 0:02:51.9]} 32. Rf4
{[%clk 0:02:24.6]} 32... Rh7 {[%clk 0:02:38.7]} 33. Rg4+ {[%clk 0:02:23.4]}
33... Kf8 {[%clk 0:02:37.9]} 34. Rxh4 {[%clk 0:02:22.4]} 34... Rxh4 {[%clk
0:02:36.4]} 35. Qxh4 {[%clk 0:02:21.3]} 35... Rb8 {[%clk 0:02:33.8]} 36. Qh8+
{[%clk 0:02:15.4]} 36... Ke7 {[%clk 0:02:31.4]} 37. Qf6+ {[%clk 0:02:14.2]}
37... Ke8 {[%clk 0:02:30]} 38. h4 {[%clk 0:02:05.6]} 38... Bxa3 {[%clk
0:02:21.4]} 39. h5 {[%clk 0:01:59.2]} 39... Bxb2 {[%clk 0:02:17]} 40. Re1 {[%clk
0:01:23.2]} 40... Qa5 {[%clk 0:02:05.3]} 41. Rf1 {[%clk 0:01:19]} 41... Qc7
{[%clk 0:01:56.8]} 42. Qh8+ {[%clk 0:01:16.9]} 42... Ke7 {[%clk 0:01:52.6]} 43.
Rxf7+ {[%clk 0:01:15.6]} 43... Kxf7 {[%clk 0:01:47.9]} 44. Qh7+ {[%clk
0:01:14.4]} 44... Kf8 {[%clk 0:01:46.7]} 45. Qxc7 {[%clk 0:01:13.5]} 45... Re8
{[%clk 0:01:46.1]} 46. Qd6+ {[%clk 0:01:10.5]} 46... Kf7 {[%clk 0:01:44.7]} 47.
g4 {[%clk 0:01:04.5]} 47... d4 {[%clk 0:01:39]} 48. Kg2 {[%clk 0:01:01.9]} 48...
Ra8 {[%clk 0:01:32.7]} 49. Qd7+ {[%clk 0:00:58.8]} 49... Kf8 {[%clk 0:01:32]}
50. Qxe6 {[%clk 0:00:56.3]} 50... d3 {[%clk 0:01:29.6]} 51. Qd6+ {[%clk
0:00:55.5]} 51... Kg7 {[%clk 0:01:28.1]} 52. Qxd3 {[%clk 0:00:53.5]} 52... Bxe5
{[%clk 0:01:24.1]} 53. Qd7+ {[%clk 0:00:51.8]} 53... Kh8 {[%clk 0:01:21.6]} 54.
Qe6 {[%clk 0:00:47.7]} 54... Bg7 {[%clk 0:01:17.5]} 55. h6 {[%clk 0:00:43.6]}
55... Ba1 {[%clk 0:01:12.1]} 56. g5 {[%clk 0:00:33.8]} 56... Rg8 {[%clk
0:01:09.5]} 57. g6 {[%clk 0:00:29.6]} 57... Bb2 {[%clk 0:00:52.1]} 58. Qf7
{[%clk 0:00:27.9]} 58... Bg7 {[%clk 0:00:43.4]} 59. hxg7+ {[%clk 0:00:25.9]}
59... Rxg7 {[%clk 0:00:42.3]} 60. Qf8+ {[%clk 0:00:24.6]} 60... Rg8 {[%clk
0:00:41.4]} 61. Qh6# {[%clk 0:00:23.7]} 1-0